{"text_format":"3","workbook":"xlsx","n_sheets":6,"sheets":["1. Zloženie tímu","2. Rozpočet","3. Účasť na podujatiach","Popis členov RT","Aktivity","zoznamy"],"not_rendered":{"images":2,"defined_names":3},"read":"whole","date_system":"1900"}

{"sheet":"1. Zloženie tímu","index":0,"n_rows":18,"n_cols":6,"rows_kept":18,"merged":[[0,0,0,1],[0,2,0,3],[1,2,1,3]]}
["Priezvisko a meno športovca :"]
[null,"Návrh pripravil :"]
["č.","Meno a priezvisko","Funkcia","Adresa","Dátum narodenia","Číslo účtu (IBAN)"]
[1]
[2]
[3]
[4]
[5]
[6]
[7]
[8]
[9]
[10]
[11]
[12]
[13]
[14]
[15]

{"sheet":"2. Rozpočet","index":1,"n_rows":29,"n_cols":5,"rows_kept":29,"merged":[[0,0,0,1]]}
["Priezvisko a meno športovca :",null,{"$f":"'1. Zloženie tímu'!C1","v":0},"Dátum spracovania :"]
[null,"Rozpočet pripravil :",{"$f":"'1. Zloženie tímu'!C2:D2","v":0}]
["č.","Stručný popis položky","Kategória","Termín čerpania","Plánovaná suma"]
[{"$f":"ROW()-3","v":1}]
[2]
[3]
[4]
[5]
[6]
[{"$f":"ROW()-3","v":7}]
[8]
[9]
[10]
[11]
[12]
[13]
[14]
[15]
[16]
[17]
[18]
[19]
[20]
[21]
[22]
[23]
[24]
[25]
[{"$nulls":3},"Spolu",{"$f":"SUBTOTAL(109,Tabuľka1[Plánovaná suma])","v":0}]

{"sheet":"3. Účasť na podujatiach","index":2,"n_rows":18,"n_cols":5,"rows_kept":18,"merged":[[0,0,0,1],[0,2,0,3],[1,2,1,3]]}
["Priezvisko a meno športovca :",null,{"$f":"'1. Zloženie tímu'!C1:D1","v":0}]
[null,"Návrh pripravil :",{"$f":"'1. Zloženie tímu'!C2:D2","v":0}]
["č.","Názov podujatia","Termín","Miesto - štát","Predpoklad umiestnenia"]
[1]
[2]
[3]
[4]
[5]
[6]
[7]
[8]
[9]
[10]
[11]
[12]
[13]
[14]
[15]

{"sheet":"Popis členov RT","index":3,"n_rows":6,"n_cols":7,"rows_kept":6}
["Kategória","Popis funkcie","Odborné vzdelanie","Odmena za vykonanú prácu","Spôsob odmeňovania","Príklad","Odmeňovanie a podiel za výsledky na Letnej, či Zimnej Deaflympiáde"]
["Osobný tréner","Športový odborník v oblasti telesnej výchovy a kultúry, musí mať odborné vzdelanie, alebo osvedčenie o odborných skúškach (licencii), zodpovedá za výsledky športovca, zostavenie a realizáciu HŠP, riadi spoluprácu a komunikáciu s ostatnými členmi realizačného tímu, priamo sa zúčastňuje prípravy športovca","Konkrétne športové odvetvie športovca zaradeného do TOP tímu","Je podmienkou spolupráce, na základe zmluvy s DVS","Pravidelne, vždy mesačne, na základe predloženej faktúry a výkazu o vykonanej práci","Atletický, tenisový, stolno-tenisový, cyklistický tréner, tréner zjazdového lyžovania","Sleduje sa dlhodobo (počas celého štvorročného cyklu) na základe výkazov o vykonanej činnosti, hodnota bodu vo výške 100%"]
["Odborný asistent","Pomocný športový odborník v oblasti telesnej výchovy a kultúry, musí mať odborné vzdelanie, alebo osvedčenie o odborných skúškach (licencii)","V oblasti vyžadovanej podpory","Nie je podmienkou spolupráce, je však obvyklá, po predložení faktúry","Nepravidelne, avšak minimálne raz za štvrťrok, na základe predloženej faktúry a výkazu o vykonanej práci","Kondičný, alebo iný tréner, tlmočník posunkového jazyku, psychológ, lekár, fyzioterapeut, výživový poradca, dietológ","Sleduje sa na základe výkazov o vykonanej činnosti, v prípade spolupráce trvajúcej viac ako dva roky"]
["Technický asistent","Pomocný, obvykle technický, či iný personál, rôzna forma podpory","Nevyžaduje sa","Nie je podmienkou spolupráce, možná na základe preukázanej odbornej činnosti, po predložení faktúry","Len na základe predloženej faktúry a preukázanej odbornej činnosti ","Cyklistický technik, komunikátor, technik údržby športového materiálu, šofér, kuchár, administrátor","Nesleduje sa, odmeňovanie výnimočne pri spolupráci trvajúcej viac ako dva roky"]
["Tréningový partner","Výkonnostný športovec z daného, alebo iného športového odvetvia, ktorý svojou účasťou na tréningovom procese napomáha športovcovi v športovom raste","Nevyžaduje sa","Nie je podmienkou spolupráce, neobvyklá, neočakáva sa","Zodpovedajúce zabezpečenie osobných materiálnych podmienok, účasti na príprave",null,"Nesleduje sa, možné výnimočne pri spolupráci trvajúcej viac ako dva roky"]
["Reprezentačný tréner","Pomocný športový odborník v oblasti telesnej výchovy a kultúry, stanovený za účelom odbornej a administratívnej pomoci reprezentantom a reprezentačným družstvám pri príležitosti reprezentačných výjazdov v zahraničí","V oblasti vyžadovanej podpory","Nie je podmienkou spolupráce, náklady z prostriedkov TOP športovcov v oddôvodnených prípadoch, obvykle z iných ch zdrojov DVS","Nepravidelne, vždy po ukončení akcie, na základe predloženej faktúry a správy o výjazde","Atletický, tenisový, stolno-tenisový, cyklistický, futbalový, futsalový reprezentačný tréner, tréner zjazdového lyžovania","Nesleduje sa, možné výnimočne pri spolupráci trvajúcej viac ako dva roky"]

{"sheet":"Aktivity","index":4,"n_rows":29,"n_cols":4,"rows_kept":29,"hidden":true,"merged":[[0,0,0,1]]}
["Priezvisko a meno športovca :",null,{"$f":"'2. Rozpočet'!C1","v":0}]
[null,"Návrh pripravil :"]
["č.","Aktivita","Termín konania","Miesto"]
[1]
[2]
[3]
[4]
[5]
[6]
[7]
[8]
[9]
[10]
[11]
[12]
[13]
[14]
[15]
[16]
[17]
[18]
[19]
[20]
[21]
[22]
[23]
[24]
[25]
["Celková hodnota",null,null,{"$f":"SUBTOTAL(103,Tabuľka13[Miesto])","v":0}]

{"sheet":"zoznamy","index":5,"n_rows":10,"n_cols":5,"rows_kept":10,"hidden":true}
["Antušeková Martina","Osobný tréner","Pitný režim, vitamíny a potravinové doplnky výživy","Tréningová príprava bežná",{"v":50000,"d":"50,000 €"}]
["Babič Adrián","Odborný asistent","Poistenie liečebných nákladov","Športové sústredenie",{"v":40000,"d":"40,000 €"}]
["Jánošíková Jana","Technický asistent","Funkčné a lekárske vyšetrenia","Regeneračný pobyt ",{"v":30000,"d":"30,000 €"}]
["Jurková Eva","Tréningový partner","Diagnostika, regenerácia a rehabilitácia","Nákup materiálneho zabezpečenia",{"v":20000,"d":"20,000 €"}]
["Keinath Thomas",null,"Športové náradie, športové náčinie a iné materiálne vybavenie neinvestičného charakteru","Vrcholová súťaž",{"v":10000,"d":"10,000 €"}]
["Krištofičová Ivana",null,"Mzdy a odvody športových odborníkov, resp. úhrady za zmluvné vykonávanie ich činností","Súťaž v rámci prípravy"]
["Legutký Martin",null,"Zabezpečenie tréningového partnera","Rehabilitácia a regenerácia"]
["Maťovčík Július",null,"Preprava športového materiálu a náčinia"]
["Pristač David",null,"Tréningový proces, sústredenia a prípravné súťaže v Slovenskej republike a v zahraničí"]
["Tutura Marek"]